Cogmind - Beta 17 @@@ ROGUE MODE // 2026.08.17 @ 16:41:02 Player: bm-y65 Result: Self-destructed Performance ------------- Evolutions (6) 3000 Regions Visited (22) 4400 Robots Destroyed (264) 1320 Value Destroyed (8819) 8819 Prototype IDs (59) 1180 Alien Tech Used (1) 200 Bonus (6202) 6202 TOTAL SCORE: 25121 Bonus ------- High Alert Combat Kills 615 Follower Combat Kills 598 Hunted by Unchained 500 Awakened Behemoth Slayer 1000 Met Data Miner 300 Met Warlord at Base 500 MAIN.C Attacked Warlord 500 Warlord Defense Kills 2756 Friendly Fire -567 Cogmind --------- Core Integrity 706/1150 Matter 285/300 Energy 170/170 System Corruption 5% Temperature Cool (0) Movement Hovering (121) Ox1 Location -4/Factory Parts ------- > --- POWER (2) -------- Light Antimatter Reactor > --- PROPULSION (6) --- Gyrokinetic Inverter Combat Gravmag System Combat Gravmag System Improved Linear Gravjet > --- UTILITY (9) ------ Advanced Heat Sink Large Storage Unit Experimental Optical Array Experimental Signal Interpreter Experimental Targeting Computer Weapon Mount Experimental Core Analyzer Improved Medium Armor Plating Hacking Suite > --- WEAPON (3) ------- Mass Driver Mass Driver CR-A16's Behemoth Slayer > --- INVENTORY (15) --- Improved Quantum Reactor Vortex Chain Reactor Antigrav System Improved Antigrav System Matter Compressor (250) Improved Target Analyzer Makeshift Light Armor Plating Graphene Brace Graphene Brace Authchip [Weapon] Enhanced Coil Gun Hypervelocity Mass Driver Peak State ------------ > --- POWER ------------ Vortex Chain Reactor > --- PROPULSION ------- Cooled Aerolev Unit Cooled Aerolev Unit Combat Gravmag System Combat Gravmag System Combat Gravmag System Cooled Antigrav System > --- UTILITY ---------- Large Storage Unit Experimental Optical Array Advanced Signal Interpreter Experimental Targeting Computer Experimental Core Analyzer Improved Cloaking Device Graphene Brace Improved Hacking Suite Ghost Barrier > --- WEAPON ----------- Helical Railgun Powered Hammer CR-A16's Behemoth Slayer > --- INVENTORY -------- Light Antimatter Reactor Light Particle Reactor Light Particle Reactor Improved Quantum Reactor Gyrokinetic Inverter Combat Gravmag System Combat Gravmag System Improved Antigrav System Weapon Mount Makeshift ECM Suite Makeshift Light Armor Plating Authchip [Weapon] Advanced Plasma Cannon Neutron Cannon [Rating: 147] Favorites ----------- Power Light Nuclear Core Engine Light Angular Momentum Engine Power Core Light Nuclear Core Reactor Light Particle Reactor Propulsion Combat Gravmag System Treads Light Treads Leg Carbon-fiber Leg Wheel Subdweller Monowheel Hover Unit Combat Gravmag System Flight Unit Improved VTOL Module Utility Hacking Suite Device Improved Sensor Array Storage Medium Storage Unit Processor Improved Signal Interpreter Hackware Hacking Suite Protection Scrap Shield Weapon Powered Hammer Energy Gun Medium Laser Energy Cannon Phase Cannon Ballistic Gun Enhanced Autogun Ballistic Cannon Hypervelocity Mass Driver Launcher Long-range Missile Launcher Special Weapon Plasma Cutter Impact Weapon Powered Hammer Slashing Weapon Katana Piercing Weapon CR-A16's Behemoth Slayer Special Melee Weapon Improved Datajack Build | -11 -10 -10 -8 -8 -7 -7 -7 -7 -6 -6 -6 -6 -6 -6 -6 -5 -5 -5 -5 -5 -4 -4 ------- Run | Yrd Mat Sub Mat Sto Fac Low Low Zio Pro Fac Was Fac Low Low Dat Pro Fac Upp Upp War Pro Fac Slots Evolved 12 | . . . 4 . 2 . . . . 2 . . . . . . 2 . . . . 2 Power . | . . . . . . . . . . . . . . . . . . . . . . . Propulsion 4 | . . . 2 . 2 . . . . . . . . . . . . . . . . . Utility 7 | . . . 2 . . . . . . 2 . . . . . . 1 . . . . 2 Weapon 1 | . . . . . . . . . . . . . . . . . 1 . . . . . Parts Attached 192 | 7 9 19 22 22 15 1 . 1 . 14 . 11 . 1 . 3 23 2 . 13 2 27 Power 25 | 1 1 2 4 2 2 . . . . 3 . . . . . 1 5 . . 1 . 3 Engine 7 | 1 1 2 . . 1 . . . . 1 . . . . . . 1 . . . . . Core 10 | . . . 4 2 1 . . . . 1 . . . . . 1 1 . . . . . Reactor 8 | . . . . . . . . . . 1 . . . . . . 3 . . 1 . 3 Propulsion 49 | 2 2 8 8 11 3 . . . . 1 . 1 . . . . 7 1 . 1 . 4 Treads 15 | 1 . 2 5 7 . . . . . . . . . . . . . . . . . . Leg 2 | . . . 2 . . . . . . . . . . . . . . . . . . . Wheel 12 | 1 2 6 1 2 . . . . . . . . . . . . . . . . . . Hover 13 | . . . . . . . . . . . . . . . . . 7 1 . 1 . 4 Flight 7 | . . . . 2 3 . . . . 1 . 1 . . . . . . . . . . Utility 71 | 2 5 3 4 5 7 . . . . 8 . 7 . . . 2 7 . . 6 1 14 Device 30 | 1 2 2 1 3 1 . . . . 3 . 3 . . . 2 3 . . 2 . 7 Storage 6 | 1 1 . . . 1 . . . . . . . . . . . 1 . . . 1 1 Processor 11 | . 1 . . 1 1 . . . . 2 . . . . . . 1 . . 3 . 2 Hackware 15 | . . . . . 4 . . . . 3 . 4 . . . . 2 . . 1 . 1 Protection 9 | . 1 1 3 1 . . . . . . . . . . . . . . . . . 3 Artifact . | . . . . . . . . . . . . . . . . . . . . . . . Weapon 47 | 2 1 6 6 4 3 1 . 1 . 2 . 3 . 1 . . 4 1 . 5 1 6 Energy Gun 6 | 1 . 2 2 1 . . . . . . . . . . . . . . . . . . Energy Cannon 8 | . . 1 . . . 1 . . . . . 1 . . . . 2 . . 3 . . Ballistic Gun 12 | 1 . 2 3 2 2 . . . . . . . . . . . . . . . 1 1 Ballistic Cannon 5 | . . . . . . . . . . . . . . . . . . 1 . . . 4 Launcher 4 | . . . 1 . . . . . . . . 1 . 1 . . . . . . . 1 Special Weapon 4 | . . . . . . . . 1 . 1 . . . . . . . . . 2 . . Impact Weapon 3 | . 1 . . . 1 . . . . 1 . . . . . . . . . . . . Slashing Weapon 2 | . . 1 . 1 . . . . . . . . . . . . . . . . . . Piercing Weapon 2 | . . . . . . . . . . . . 1 . . . . 1 . . . . . Special Melee Weapon 1 | . . . . . . . . . . . . . . . . . 1 . . . . . Unidentified Prototypes 25 | . . . 3 2 . . 1 1 . 1 . 1 . . . . 3 . . 11 1 1 Corrupted Parts 2 | . . . . . . . . . . . . . . . . . 2 . . . . . System Corruption 6 | . . . . . . . . . . . . . . . . . 6 . . . . . Parts Lost 45 | . 3 4 3 7 1 . . . . . 1 . . . 1 1 2 . 1 5 . 16 Power 10 | . 1 1 . 1 . . . . . . 1 . . . 1 . 2 . . . . 3 Propulsion 13 | . 1 . 2 4 . . . . . . . . . . . . . . . . . 6 Utility 13 | . 1 1 1 2 1 . . . . . . . . . . 1 . . 1 2 . 3 Weapon 9 | . . 2 . . . . . . . . . . . . . . . . . 3 . 4 Highest Loss Streak 4 | . 1 4 1 3 1 . . . . . 1 . . . 1 1 1 . 1 4 . 4 To Critical Strikes . | . . . . . . . . . . . . . . . . . . . . . . . Average Backups 11 | 4 11 8 16 16 10 10 9 9 10 9 10 9 10 10 10 9 9 10 9 9 14 13 Power 1 | . 2 1 1 1 2 2 1 1 1 1 . . 1 1 1 . . 2 2 2 3 2 Propulsion 3 | 3 2 2 5 6 3 2 2 2 2 1 1 1 2 2 2 2 4 4 3 3 3 2 Utility 4 | . 2 2 4 5 2 4 4 4 4 4 6 5 5 5 5 5 3 3 2 2 6 5 Weapon 2 | . 3 2 4 3 1 1 1 1 2 2 2 2 2 2 2 2 1 1 1 2 1 2 Tool/Special . | . . . . . . . . . . . . . . . . . . . . . . . Unused Backups 48 | . 3 . 13 11 3 . . . . 1 . 3 . . . . 2 . . 1 1 10 Power 9 | . . . 3 2 1 . . . . 1 . . . . . . . . . . . 2 Propulsion 15 | . 3 . . 6 2 . . . . . . . . . . . 2 . . . . 2 Utility 14 | . . . 5 1 . . . . . . . 2 . . . . . . . . 1 5 Weapon 10 | . . . 5 2 . . . . . . . 1 . . . . . . . 1 . 1 Tool/Special . | . . . . . . . . . . . . . . . . . . . . . . . Average Slot Usage (%) 88 | . 96 89 92 98 78 80 80 81 81 81 79 82 83 83 82 76 83 100 99 93 94 93 Engine 4 | . 13 13 4 . 5 6 1 . . 3 2 5 5 5 5 5 2 . . . . . Core 3 | . . . 4 8 . . 9 12 12 7 7 5 5 5 4 4 6 . . . . . Reactor 1 | . . . . . . . . . . . . . . . . . . 11 11 6 5 7 Treads 7 | . 14 14 23 26 . . . . . . . . . . . . . . . . . . Wheel 4 | . 13 14 9 8 . . . . . . . . . . . . . . . . . . Hover 7 | . . . . . . . . . . . . . . . . . 3 33 33 33 33 28 Flight 6 | . . . . . 17 20 18 18 18 16 16 16 16 16 16 16 12 . . . . . Device 8 | . 11 4 11 10 6 6 6 6 6 8 5 5 5 5 5 5 13 11 12 15 5 8 Storage 6 | . 14 4 9 9 6 6 6 6 6 5 5 5 5 5 5 5 5 5 5 5 5 5 Processor 6 | . . . . 8 6 6 6 6 6 7 11 11 11 11 11 10 5 5 5 5 16 20 Hackware 10 | . . . . . 19 20 18 18 18 20 22 22 22 22 22 22 19 16 14 11 11 9 Protection 2 | . . 9 9 7 . . . . . . . . . . . . . . . . . 1 Energy Gun 1 | . 14 2 1 . . . . . . . . . . . . . . . . . . . Energy Cannon 3 | . . 11 1 . . . 4 6 6 4 2 3 5 5 . 2 . 5 4 3 . 1 Ballistic Gun 6 | . 13 12 14 16 6 6 1 . . . . . . . . . . . . . 4 1 Impact Weapon 2 | . . . . . 2 5 6 6 6 5 5 5 5 5 5 . 4 5 5 5 5 . Piercing Weapon 1 | . . . . . . . . . . . . . . . 5 2 4 5 5 5 5 4 Peak Build Rating 147 | 7 10 17 33 36 78 77 79 81 79 93 93 99 99 99 99 103 120 109 107 127 131 147 Average Rating 72 | 5 7 12 29 31 74 76 77 78 79 89 90 96 99 98 98 97 115 106 106 119 130 135 On Entrance 75 | . 7 10 17 33 29 76 76 78 79 79 93 88 99 99 99 96 103 107 107 107 127 131 Avg Prop Armor Cover (%) 8 | 12 12 6 11 18 19 . . . . . . . . . . . . 3 2 2 . . Naked Turns . | . . . . . . . . . . . . . . . . . . . . . . . Heaviest Build 86 | 13 48 57 75 66 52 26 32 32 32 41 34 36 36 36 31 35 53 53 54 69 67 86 Greatest Support 88 | 10 20 20 62 60 34 29 34 34 34 44 35 36 36 36 36 36 74 78 63 76 76 88 Greatest Overweight (x) 11 | 1 4 5 4 4 3 . . . . 11 . . . . . . 3 . . 1 . 1 Average Overweight (x) . | . 2 1 2 2 . . . . . . . . . . . . . . . . . . Largest Inventory Capacity 20 | 8 20 20 20 20 20 10 10 10 10 10 10 10 10 10 10 10 10 10 10 10 15 15 Average Capacity 12 | 7 15 10 20 20 10 10 10 10 10 10 10 10 10 10 10 10 10 10 10 10 14 15 Most Carried 20 | 7 20 20 20 20 20 10 10 10 10 10 10 10 10 10 10 10 10 10 10 10 15 15 Average Carried 12 | 4 11 9 19 19 10 9 9 9 10 9 9 9 10 10 10 9 9 10 9 9 14 13 Final Capacity 20 | 8 20 20 20 20 10 10 10 10 10 10 10 10 10 10 10 10 10 10 10 10 15 15 Final Carried 20 | 7 20 20 20 20 10 10 9 10 10 10 10 10 10 10 10 10 10 10 9 10 15 13 Class Distribution -------------------- 36% | Hacker-Mutant 21% | Mutant 12% | Hacker-Sprinter 11% | Hacker-Scout 8% | Subdweller-Mutant 7% | Scavenger-Mutant Dominant Class ---------------- Mutant | -10/Materials Subdweller-Mutant | -10/Subcaves Mutant | -8/Materials Scavenger-Mutant | -8/Storage Hacker-Mutant | -7/Factory Hacker-Mutant | -7/Lower Caves Hacker-Sprinter | -7/Lower Caves Hacker-Sprinter | -7/Zion Hacker-Sprinter | -6/Proximity Caves Hacker-Sprinter | -6/Factory Hacker-Scout | -6/Waste Hacker-Scout | -6/Factory Hacker-Scout | -6/Lower Caves Hacker-Scout | -6/Lower Caves Hacker-Scout | -6/Data Miner Hacker-Scout | -5/Proximity Caves Hacker-Mutant | -5/Factory Hacker-Mutant | -5/Upper Caves Hacker-Mutant | -5/Upper Caves Hacker-Mutant | -5/Warlord Hacker-Mutant | -4/Proximity Caves Hacker-Mutant | -4/Factory Resources | -11 -10 -10 -8 -8 -7 -7 -7 -7 -6 -6 -6 -6 -6 -6 -6 -5 -5 -5 -5 -5 -4 -4 ----------- Run | Yrd Mat Sub Mat Sto Fac Low Low Zio Pro Fac Was Fac Low Low Dat Pro Fac Upp Upp War Pro Fac Matter Collected 7539 | 291 327 291 983 1078 359 116 80 . 20 172 . 251 74 33 . 85 264 195 204 482 75 2159 Remotely . | . . . . . . . . . . . . . . . . . . . . . . . Salvage Created 11118 | 158 749 400 1484 1423 361 64 53 . 7 242 . 685 147 . . 76 828 95 96 719 111 3420 Parts 489 | 7 43 23 79 77 24 1 . . . 4 . 19 . . . 5 9 11 5 18 . 164 Haulers Intercepted 27 | . 2 . 4 6 3 . . . . . . 3 . . . . 5 . . . . 4 Recyclers Shooed 11 | 1 3 . 4 1 . . . . . 1 . . . . . . . . . . . 1 Parts Field Recycled . | . . . . . . . . . . . . . . . . . . . . . . . Retrieved Matter . | . . . . . . . . . . . . . . . . . . . . . . . Parts Self-Destructed 22 | . . 7 . . . . . . . . . . . . . 3 . 7 5 . . . Prevented 3 | . . . . . . . 2 . . . . . . . . . . 1 . . . . Parts Restored . | . . . . . . . . . . . . . . . . . . . . . . . Kills | -11 -10 -10 -8 -8 -7 -7 -7 -7 -6 -6 -6 -6 -6 -6 -6 -5 -5 -5 -5 -5 -4 -4 ------- Run | Yrd Mat Sub Mat Sto Fac Low Low Zio Pro Fac Was Fac Low Low Dat Pro Fac Upp Upp War Pro Fac Combat Hostiles Destroyed 174 | . 12 11 26 23 4 . . . 2 3 . 4 . . . 1 1 5 10 26 2 44 Melee 11 | . . . . 2 . . . . . . . 1 . . . . 1 . . . 1 6 Guns 69 | . 12 5 23 21 4 . . . . . . . . . . . . . . . . 4 Cannons 49 | . . 6 2 . . . . . 1 1 . . . . . . . . . 14 . 25 AOE 39 | . . . 1 . . . . . . 2 . 3 . . . . . 5 10 10 . 8 Classes Destroyed 22 | 2 5 1 4 2 . . 1 . 1 . . . . . . 1 1 1 . 2 . 1 Worker 11 | . . . . 1 3 . . . . . . 2 . . . . . . . . . 5 Builder 2 | . . . 2 . . . . . . . . . . . . . . . . . . . Tunneler 7 | 2 1 . 1 . . . . . . 1 . . . . . . . . . . . 2 Hauler 27 | . 2 . 4 6 3 . . . . . . 3 . . . . 5 . . . . 4 Recycler 18 | 1 3 . 1 2 1 . . . . 1 . 2 . . . . 2 . . . . 5 Minesweeper 1 | . . . . . . . . . . . . . . . . . . 1 . . . . Mechanic 3 | . . . . 1 . . . . . . . . . . . . . . . . . 2 Operator 10 | . 1 . 1 1 1 . . . . 1 . 2 . . . . 2 . . . . 1 Drone 2 | . . . . . . . . . 2 . . . . . . . . . . . . . Watcher 9 | . 2 . . 1 . . . . . 1 . . . . . . . . . . . 5 Swarmer 50 | . 6 3 2 8 4 . . . . . . 3 . . . . . 5 6 4 . 9 Cutter 5 | . . . . . . . . . . . . . . . . . . . . . . 5 Grunt 59 | . 6 . 13 6 . . . . . 3 . 1 . . . . . . 4 13 . 13 Brawler 2 | . . . . . . . . . . . . . . . . . . . . 2 . . Duelist 8 | . . . 1 5 . . . . . . . . . . . . . . . 1 . 1 Protector 4 | . . . . . . . . . . . . . . . . . . . . 4 . . Researcher 1 | . . . . . . . 1 . . . . . . . . . . . . . . . Sentry 14 | . . . 8 4 . . . . . . . . . . . . . . . . . 2 Hunter 8 | . . . 2 . . . . . . . . . . . . . . . . . 2 4 Programmer 10 | . . . . . . . . . . . . . . . . . 1 . . . . 9 Behemoth 4 | . . . . . . . . . . . . . . . . 1 . . . 2 . 1 Subdweller 8 | . . 8 . . . . . . . . . . . . . . . . . . . . Decomposer 3 | . . . . . . . . . . . . . 3 . . . . . . . . . Packrat 2 | . . . . . . 1 . . . . . . 1 . . . . . . . . . Butcher 1 | . . . . . . . . . . . . . . . . . . . . 1 . . Best Kill Streak 13 | 2 4 2 4 9 2 . . . 1 4 . 5 . . . 1 2 5 4 7 2 13 Combat Bots Only 10 | . 4 2 3 7 2 . . . 1 3 . 3 . . . 1 1 5 4 7 2 10 Max Kills in Single Turn 5 | 1 1 1 2 2 1 1 1 . 1 1 . 2 1 . . 1 1 5 4 3 1 4 Gunslinging . | . . . . . . . . . . . . . . . . . . . . . . . Exploded 5 | . . . 1 . . . . . . 1 . 2 . . . . . 5 4 3 . 4 Melee 1 | . . . . 1 . . . . . . . 1 . . . . 1 . . . 1 1 Uniques/NPCs Destroyed . | . . . . . . . . . . . . . . . . . . . . . . . Combat | -11 -10 -10 -8 -8 -7 -7 -7 -7 -6 -6 -6 -6 -6 -6 -6 -5 -5 -5 -5 -5 -4 -4 -------- Run | Yrd Mat Sub Mat Sto Fac Low Low Zio Pro Fac Was Fac Low Low Dat Pro Fac Upp Upp War Pro Fac Hostile Shots Fired 932 | . 60 51 150 131 45 . 4 . . 67 1 31 . . 14 32 21 2 31 40 45 207 Missed 335 | . 15 15 27 30 23 . 3 . . 32 . 22 . . 5 17 13 1 11 21 17 83 Hits 597 | . 45 36 123 101 22 . 1 . . 35 1 9 . . 9 15 8 1 20 19 28 124 Melee 18 | . . . . 8 . . . . . . 1 . . . . . . . . . . 9 Projectile 579 | . 45 36 123 93 22 . 1 . . 35 . 9 . . 9 15 8 1 20 19 28 115 AOE 4 | . . . . . . . . . . . . . . . . . . . . . . 4 Critical Strikes 21 | . . . 2 3 1 . . . . 2 . . . . . 1 . . 1 1 1 9 Actively Blocked 3 | . . . . . . . . . . . . . . . . . . . . . . 3 Part Disruptions 2 | . . . . . . . . . . 1 . . . . 1 . . . . . . . Damage Taken 10438 | . 531 554 1696 1439 281 . 16 . . 469 62 231 . . 420 359 157 59 479 544 401 2740 Core 1378 | . 91 64 148 195 30 . . . . 65 50 . . . . 31 19 13 42 103 83 444 Absorbed by Shields 132 | . . . 132 . . . . . . . . . . . . . . . . . . . Regen/Repaired (Parts) 361 | . . . 64 . . . . . . . 4 115 . . . . . . . 75 . 103 Core Remaining (%) 71 | 100 . 38 . 37 . . . . 95 . . . . . . 82 . . . . 74 . Volleys Fired 642 | 7 79 53 128 109 14 3 4 . 2 6 . 7 . 2 . 1 5 2 15 68 11 126 Largest 2 | 2 2 2 2 2 2 1 1 . 1 1 . 1 . 1 . 1 1 1 1 1 1 2 Hottest 120 | 70 70 115 100 94 50 85 85 . 85 85 . 85 . 85 . 85 85 85 85 100 38 120 Shots Fired 1026 | 14 157 71 242 216 28 3 4 . 2 6 . 7 . 2 . 1 5 5 15 68 11 169 Gun 722 | 14 157 42 229 216 28 . . . . . . . . . . . . . . . 11 25 Cannon 266 | . . 29 11 . . 3 4 . 2 2 . 5 . 2 . 1 5 4 3 59 . 136 Launcher 29 | . . . 2 . . . . . . . . 2 . . . . . 1 12 4 . 8 Special 9 | . . . . . . . . . . 4 . . . . . . . . . 5 . . Kinetic 709 | 7 79 17 206 213 28 . . . . . . . . . . . . . . . 11 148 Thermal 222 | 7 78 54 34 3 . 3 4 . 2 2 . 5 . 2 . 1 5 4 3 2 . 13 Explosive 38 | . . . 2 . . . . . . 4 . 2 . . . . . 1 12 9 . 8 Electromagnetic . | . . . . . . . . . . . . . . . . . . . . . . . Entropic 57 | . . . . . . . . . . . . . . . . . . . . 57 . . Robot Hit Streak 22 | 2 12 8 17 11 3 . . . 4 3 . 1 . . . . . . 2 6 3 22 Robot Miss Streak 9 | 3 4 4 5 9 5 . . . . 1 . 1 . . . 1 . . 5 3 3 6 Penetration Max 1 | . . . . . . . . . . . . . . . . . . . . 1 . 1 Secondary Targets 9 | . . 1 1 5 2 . . . . . . . . . . . . . . . . . Max Gunslinging Chain 1 | . . 1 1 1 1 . . . . . . . . . . . . . . . . . Shots Hit Robots 739 | 6 94 40 171 123 31 1 2 . 3 17 . 17 4 . 1 3 23 1 6 35 12 149 Core Hits 376 | 4 34 13 69 54 11 . . . . 6 . 9 1 . . . 4 6 21 46 4 94 Critical Kills 30 | . . . . . . . . . . . . 1 1 . . . . . . . . 28 Critical Parts Destroyed 37 | . . . . . 1 1 . . . 2 . 2 . . . . 1 . . . 1 29 Critical Strikes 112 | . 5 . . 2 2 1 . . . 3 . 3 1 . . . 2 . . 23 2 68 Burn 5 | . 5 . . . . . . . . . . . . . . . . . . . . . Destroy 59 | . . . . 1 . . . . . . . . . . . . . . . . . 58 Blast 3 | . . . . . . . . . . . . . . . . . . . . . . 3 Smash 10 | . . . . . 1 1 . . . 2 . 3 1 . . . 1 . . . 1 . Sever 3 | . . . . 1 1 . . . . 1 . . . . . . . . . . . . Impale 9 | . . . . . . . . . . . . . . . . . 1 . . . 1 7 Sunder 23 | . . . . . . . . . . . . . . . . . . . . 23 . . Melee Attacks 339 | . 2 . . 11 52 12 11 1 1 36 1 35 4 2 28 6 62 2 . . 15 58 Impact 197 | . 2 . . . 15 12 11 1 1 36 1 35 4 2 . . 53 2 . . 13 9 Slashing 48 | . . . . 11 37 . . . . . . . . . . . . . . . . . Piercing 94 | . . . . . . . . . . . . . . . 28 6 9 . . . 2 49 Sneak Attacks 52 | . . . . . 8 1 2 . 1 2 . 9 4 . 1 . 10 1 . . . 13 Combat Hostiles 1 | . . . . . . . . . 1 . . . . . . . . . . . . . Follow-up Attacks 8 | . . . . . . . . . . . . . . . . . 5 . . . 1 2 Damage Inflicted 28979 | 72 1224 817 3125 2393 1262 92 253 . 131 1357 . 1294 407 . 77 68 1559 428 1264 6767 432 5957 Guns 7335 | 72 1223 398 2676 2177 214 . . . . . . . . . . . . . . . 59 516 Cannons 6674 | . . 419 192 . . . . . 62 . . . . . . . . . 60 3735 . 2206 Explosions 6756 | . . . 234 . . . . . . 484 . 165 . . . . . 347 1204 2856 . 1466 Melee 7891 | . . . . 216 1048 92 253 . 69 750 . 1129 407 . 77 68 1559 81 . . 373 1769 Ramming 24 | . 1 . 23 . . . . . . . . . . . . . . . . . . . Kinetic 8445 | 35 680 144 2487 2139 214 . . . . . . . . . . . . . . . 59 2687 Thermal 1866 | 37 543 673 381 38 . . . . 62 . . . . . . . . . 60 37 . 35 Explosive 6756 | . . . 234 . . . . . . 484 . 165 . . . . . 347 1204 2856 . 1466 Electromagnetic . | . . . . . . . . . . . . . . . . . . . . . . . Impact 4898 | . . . . . 217 92 253 . 69 750 . 1129 407 . . . 1296 81 . . 302 302 Slashing 1346 | . . . . 216 831 . . . . 123 . . . . . . . . . 176 . . Piercing 1946 | . . . . . . . . . . . . . . . 77 68 263 . . . 71 1467 Entropic 3698 | . . . . . . . . . . . . . . . . . . . . 3698 . . Highest Corruption 10 | . . . . 5 . . . . . 4 9 10 10 10 10 10 8 8 8 8 . 5 Average Corruption 5 | . . . . 4 . . . . . 2 9 9 10 10 10 10 3 8 8 8 . 2 Corruption Purged 6 | . . . . . . . . . . 4 . . . . . . . . . . . 2 Corruption Blocked . | . . . . . . . . . . . . . . . . . . . . . . . Effects 166 | . . . . 32 . . . . . 4 4 38 1 10 8 7 11 9 13 1 . 28 Message Errors 30 | . . . . 9 . . . . . . 1 8 . 1 2 1 . 1 3 . . 4 Matter Fused 37 | . . . . 8 . . . . . . . 3 . 5 3 4 5 1 3 . . 5 Heat Flow Errors 18 | . . . . 1 . . . . . 1 1 6 . 1 1 . 1 . 2 . . 4 Energy Discharges 24 | . . . . 3 . . . . . . . 10 . 2 2 1 . 2 1 . . 3 Parts Rejected 5 | . . . . . . . . . . 1 2 . . . . . . . . . . 2 Data Loss (minor) 29 | . . . . 6 . . . . . 1 . 9 . 1 . . 2 1 1 . . 8 Data Loss (major) 9 | . . . . . . . . . . . . 1 1 . . . 2 1 3 . . 1 Misfires 5 | . . . . 2 . . . . . . . . . . . . . 3 . . . . Alerts 4 | . . . . . . . . . . 1 . 1 . . . . 1 . . 1 . . Misdirections 1 | . . . . . . . . . . . . . . . . 1 . . . . . . Weapon Failures 4 | . . . . 3 . . . . . . . . . . . . . . . . . 1 Overload Shots . | . . . . . . . . . . . . . . . . . . . . . . . Overflow Damage 2942 | . . . . . 201 92 128 . 61 360 . 437 246 . 17 . 497 . 107 260 78 458 Projectiles 260 | . . . . . . . . . 22 30 . . . . . . . . 12 196 . . Explosions 180 | . . . . . . . . . . 2 . 19 . . . . . . 95 64 . . Melee 2502 | . . . . . 201 92 128 . 39 328 . 418 246 . 17 . 497 . . . 78 458 Knockbacks 30 | . . . . . . . 1 . . 9 . 1 . . . . 3 . . . 1 15 Impact 15 | . . . . . . . 1 . . 9 . 1 . . . . 3 . . . 1 . Kinetic 14 | . . . . . . . . . . . . . . . . . . . . . . 14 Secondary 1 | . . . . . . . . . . . . . . . . . . . . . . 1 Self-Inflicted Damage 91 | . . . . . . . . . . . . . . . . . . 6 71 . . 14 Shots 3 | . . . . . . . . . . . . . . . . . . 1 1 . . 1 Rammed 3 | . 1 . 2 . . . . . . . . . . . . . . . . . . . Targets Rammed 3 | . 1 . 2 . . . . . . . . . . . . . . . . . . . Kicked . | . . . . . . . . . . . . . . . . . . . . . . . Crushed . | . . . . . . . . . . . . . . . . . . . . . . . Highest Temperature 463 | 27 165 6 352 223 30 40 117 216 130 225 263 294 . 239 167 51 333 454 294 348 9 463 Average Temperature 85 | 10 40 5 91 51 13 26 36 86 34 28 148 101 . 93 99 18 152 104 93 160 6 124 Received Heat Transfer 2213 | . 180 84 629 405 . . . . . 66 . 45 . . . 60 9 . 129 54 . 552 Effects 16 | . . . . . . . . . . . 3 3 . . . . . 2 . 3 . 5 Shutdowns 1 | . . . . . . . . . . . . . . . . . . 1 . . . . Energy Bleed 1 | . . . . . . . . . . . . . . . . . . . . . . 1 Interference 10 | . . . . . . . . . . . 3 3 . . . . . . . 1 . 3 Matter Decay 2 | . . . . . . . . . . . . . . . . . . 1 . 1 . . Short Circuit 2 | . . . . . . . . . . . . . . . . . . . . 1 . 1 Siege Activations . | . . . . . . . . . . . . . . . . . . . . . . . Martial Activations . | . . . . . . . . . . . . . . . . . . . . . . . Shielding Activations . | . . . . . . . . . . . . . . . . . . . . . . . Robots Disrupted . | . . . . . . . . . . . . . . . . . . . . . . . Combat Hostiles . | . . . . . . . . . . . . . . . . . . . . . . . Robots Corrupted 15 | . . . . . . . . . 1 3 . 4 . . . . 5 . . . 1 1 Combat Hostiles 2 | . . . . . . . . . 1 . . . . . . . . . . . 1 . Parts Fried 28 | . . . . . 1 . 3 . . 3 . 8 1 . . . 5 . . . 6 1 Impact Corruptions 67 | . . . . . 2 1 2 . 2 15 . 14 9 . . . 16 . . . 4 2 Robots Melted . | . . . . . . . . . . . . . . . . . . . . . . . Combat Hostiles . | . . . . . . . . . . . . . . . . . . . . . . . Parts Melted 11 | . 3 3 1 3 . . . . . . . . . . . . . . . 1 . . Heat Transferred 3924 | 111 1961 1001 629 74 . . . . 74 . . . . . . . . . 74 . . . Parts Sabotaged . | . . . . . . . . . . . . . . . . . . . . . . . Parts Stolen . | . . . . . . . . . . . . . . . . . . . . . . . Parts Stripped . | . . . . . . . . . . . . . . . . . . . . . . . Power Chain Reactions . | . . . . . . . . . . . . . . . . . . . . . . . Alert | -11 -10 -10 -8 -8 -7 -7 -7 -7 -6 -6 -6 -6 -6 -6 -6 -5 -5 -5 -5 -5 -4 -4 ------- Run | Yrd Mat Sub Mat Sto Fac Low Low Zio Pro Fac Was Fac Low Low Dat Pro Fac Upp Upp War Pro Fac Maximum Alert Level 4 | . . . 1 2 1 . . . . 1 . . . . . . . . . . . 4 Low Security (%) 63 | 100 100 . 45 40 48 . . . . 85 100 100 . . . . 100 . . . . 27 Level 1 26 | . . . 54 33 51 . . . . 14 . . . . . . . . . . . 37 Level 2 6 | . . . . 26 . . . . . . . . . . . . . . . . . 18 Level 3 2 | . . . . . . . . . . . . . . . . . . . . . . 13 Level 4 . | . . . . . . . . . . . . . . . . . . . . . . 3 Level 5 . | . . . . . . . . . . . . . . . . . . . . . . . High Security . | . . . . . . . . . . . . . . . . . . . . . . . Max Security . | . . . . . . . . . . . . . . . . . . . . . . . Peak Influence 1182 | 5 149 . 313 431 300 . . . . 253 10 86 . . . . 68 . . . . 1182 Initial 194 | . . . . 126 194 . . . . . 10 . . . . . 12 . . . . 19 Average 175 | 1 54 . 181 248 210 . . . . 101 2 17 . . . . 22 . . . . 405 Influence Increases 7343 | 15 395 120 866 1264 427 . . . 10 531 28 320 . . . 90 429 115 280 550 80 1823 Destroy 0b10 Robot/C 3520 | . 240 60 520 780 80 . . . . 60 . 80 . . . 20 20 100 200 440 40 880 Destroy 0b10 Robot/NC 480 | 15 45 . 45 70 40 . . . 10 20 . 45 . . . . 45 5 . 20 . 120 Destroy Leader 694 | . 48 . 168 176 6 . . . . 12 . 16 . . . 10 20 10 20 . 10 198 Allied During Kill 179 | . . . . 179 . . . . . . . . . . . . . . . . . . Successful Hack 278 | . 14 . 20 11 33 . . . . 68 . 54 . . . . 66 . . . . 12 Disable Machine 195 | . . . 30 30 30 . . . . 15 . 15 . . . . 30 . . . . 45 Destroy Structure 437 | . 3 . 23 3 28 . . . . 41 28 35 . . . . 68 . . . . 208 Partial Spotted 255 | . . . . . 30 . . . . 45 . 45 . . . . 75 . . . . 60 Lose Combat Pursuer 1305 | . 45 60 60 15 180 . . . . 270 . 30 . . . 60 105 . 60 90 30 300 Influence Decreases 6173 | 15 395 120 565 1136 607 249 . . 10 501 58 283 37 . . 70 415 119 154 368 386 685 Entered New Map 1073 | . . . . 175 235 93 . . . . 20 . 15 . . . 8 14 6 156 338 13 Time Decay 3913 | 15 365 120 535 430 342 156 . . 10 241 16 271 22 . . 65 360 105 138 162 48 512 Lost Part 375 | . 30 . 30 70 10 . . . . . . . . . . 5 10 . 10 50 . 160 Lost Ally 222 | . . . . 180 20 . . . . . 22 . . . . . . . . . . . Purge Threat 590 | . . . . 281 . . . . . 260 . 12 . . . . 37 . . . . . Squads Dispatched 52 | . . . 7 4 6 . . . . 6 . 6 . . . . 7 . . . . 16 Investigation 19 | . . . 5 1 3 . . . . 3 . 3 . . . . 3 . . . . 1 Extermination 16 | . . . . . 2 . . . . 3 . 2 . . . . 3 . . . . 6 Reinforcement 11 | . . . 2 . 1 . . . . . . 1 . . . . 1 . . . . 6 Assault 5 | . . . . 2 . . . . . . . . . . . . . . . . . 3 Garrison 1 | . . . . 1 . . . . . . . . . . . . . . . . . . Intercept . | . . . . . . . . . . . . . . . . . . . . . . . Searches Triggered . | . . . . . . . . . . . . . . . . . . . . . . . Unchained Authorized 3 | . . . . . . . . . . . . . . . . . 1 1 1 . . . Construction Impeded 1 | . . . 1 . . . . . . . . . . . . . . . . . . . Haulers Reinforced 2 | . . . . . 1 . . . . . . . . . . . . . . . . 1 Active Scanning Responses . | . . . . . . . . . . . . . . . . . . . . . . . Cargo Convoy Interrupts . | . . . . . . . . . . . . . . . . . . . . . . . Stealth | -11 -10 -10 -8 -8 -7 -7 -7 -7 -6 -6 -6 -6 -6 -6 -6 -5 -5 -5 -5 -5 -4 -4 --------- Run | Yrd Mat Sub Mat Sto Fac Low Low Zio Pro Fac Was Fac Low Low Dat Pro Fac Upp Upp War Pro Fac Distress Signals 15 | . 3 . 6 . 1 . . . . 1 . . . . . . . . . 1 . 3 Communications Jammed 7 | . . . . . . . . . . . . . . . . . . . . 7 . . Distress Signals 7 | . . . . . . . . . . . . . . . . . . . . 7 . . Times Spotted 371 | . 21 11 45 44 19 . 4 . 1 19 5 9 . . 4 5 13 5 14 56 5 91 Peak Tracking Total 16 | . 5 3 6 5 5 . 4 . 1 6 4 4 . . 4 3 3 5 5 16 3 7 Tactical Retreats 54 | . 2 3 3 1 7 . . . . 9 . 2 . . . 3 4 . 4 3 2 11 ECM-based Alert Blocks 4 | . . . . . . . . . . . . . . . . . . . . . . 4 Traps | -11 -10 -10 -8 -8 -7 -7 -7 -7 -6 -6 -6 -6 -6 -6 -6 -5 -5 -5 -5 -5 -4 -4 ------- Run | Yrd Mat Sub Mat Sto Fac Low Low Zio Pro Fac Was Fac Low Low Dat Pro Fac Upp Upp War Pro Fac Traps Triggered 26 | . 2 . 3 6 2 . . . . 1 . 2 . . . . 3 1 . . . 6 Indirectly . | . . . . . . . . . . . . . . . . . . . . . . . Trap Hack Attempts . | . . . . . . . . . . . . . . . . . . . . . . . Triggered . | . . . . . . . . . . . . . . . . . . . . . . . Disarmed 6 | . . . . . . . . . . . . 6 . . . . . . . . . . Reprogrammed . | . . . . . . . . . . . . . . . . . . . . . . . Reused . | . . . . . . . . . . . . . . . . . . . . . . . Traps Extracted . | . . . . . . . . . . . . . . . . . . . . . . . Installed 1 | . . 1 . . . . . . . . . . . . . . . . . . . . Triggered . | . . . . . . . . . . . . . . . . . . . . . . . Most Traps Carried 1 | . . 1 . . . . . . . . . . . . . . . . . . . . Machines | -11 -10 -10 -8 -8 -7 -7 -7 -7 -6 -6 -6 -6 -6 -6 -6 -5 -5 -5 -5 -5 -4 -4 ---------- Run | Yrd Mat Sub Mat Sto Fac Low Low Zio Pro Fac Was Fac Low Low Dat Pro Fac Upp Upp War Pro Fac Machines Disabled 20 | . . 2 2 2 2 . . . . 1 . 1 . . 1 . 2 . . 4 . 3 Max in Single Turn 1 | . . 1 1 1 1 . . . . 1 . 1 . . 1 . 1 . . 1 . 1 Garrison Access 5 | . . . 1 1 1 . . . . . . 1 . . . . 1 . . . . . Machines Repaired . | . . . . . . . . . . . . . . . . . . . . . . . Machines Dismantled . | . . . . . . . . . . . . . . . . . . . . . . . Machines Sabotaged . | . . . . . . . . . . . . . . . . . . . . . . . Overloaded Fab Kills . | . . . . . . . . . . . . . . . . . . . . . . . Hacking | -11 -10 -10 -8 -8 -7 -7 -7 -7 -6 -6 -6 -6 -6 -6 -6 -5 -5 -5 -5 -5 -4 -4 --------- Run | Yrd Mat Sub Mat Sto Fac Low Low Zio Pro Fac Was Fac Low Low Dat Pro Fac Upp Upp War Pro Fac Machines Accessed 103 | . 3 2 10 6 11 1 1 . . 12 . 20 . . 4 . 16 1 . 1 . 15 Terminals 56 | . 2 . 6 5 5 . . . . 8 . 12 . . . . 9 . . . . 9 Fabricators 13 | . . . . . 2 . . . . 3 . 4 . . . . 3 . . . . 1 Repair Stations 5 | . . . 1 . 1 . . . . . . 1 . . . . . . . . . 2 Recycling Units 6 | . 1 . 1 . . . . . . . . 1 . . . . 1 . . . . 2 Scanalyzers 8 | . . . 1 . 2 . . . . 1 . 1 . . . . 2 . . . . 1 Garrison Access 5 | . . . 1 1 1 . . . . . . 1 . . . . 1 . . . . . Total Hacks 297 | . 7 6 33 14 34 1 1 . . 40 . 61 . . 28 . 40 1 . 1 . 30 Successful 188 | . 2 6 20 6 18 1 1 . . 28 . 41 . . 28 . 28 1 . 1 . 7 Failed 108 | . 5 . 13 8 15 . . . . 12 . 20 . . . . 12 . . . . 23 Catastrophic 19 | . . . 2 2 1 . . . . 2 . 3 . . . . 1 . . . . 8 Database Lockouts 1 | . . . . . 1 . . . . . . . . . . . . . . . . . Manual 99 | . 2 . 14 6 14 . . . . 18 . 10 . . . . 21 . . 1 . 13 Terminals 162 | . 4 . 24 13 18 . . . . 22 . 37 . . . . 25 . . . . 19 Fabricators 47 | . . . . . 6 . . . . 14 . 16 . . . . 9 . . . . 2 Repair Stations 13 | . . . 3 . 3 . . . . . . 3 . . . . . . . . . 4 Recycling Units 12 | . 3 . 2 . . . . . . . . 2 . . . . 1 . . . . 4 Scanalyzers 19 | . . . 3 . 6 . . . . 4 . 1 . . . . 4 . . . . 1 Garrison Access 6 | . . . 1 1 1 . . . . . . 2 . . . . 1 . . . . . Terminal Hacks 100 | . 2 6 9 5 7 1 1 . . 8 . 19 . . 28 . 10 1 . 1 . 2 Record 16 | . . 5 . . . . . . . . . . . . 11 . . . . . . . Part Schematic 19 | . . . 1 . . . . . . 3 . 3 . . 11 . 1 . . . . . Robot Schematic 3 | . . . . . . . . . . . . . . . 3 . . . . . . . Prototype ID Bank 7 | . . . 1 1 1 . . . . . . 1 . . 3 . . . . . . . Open Door 5 | . . . . 1 . 1 1 . . . . . . . . . . 1 . 1 . . Branch Access Points 2 | . . . . . 1 . . . . . . 1 . . . . . . . . . . Emergency Access Points 1 | . . . . . . . . . . . . 1 . . . . . . . . . . Machine Index 1 | . . . . . . . . . . . . . . . . . 1 . . . . . Terminal Index 3 | . . . . . 1 . . . . . . 1 . . . . 1 . . . . . Fabricator Index 2 | . . . . . 1 . . . . . . 1 . . . . . . . . . . Alert Level 2 | . . . . . . . . . . . . 1 . . . . . . . . . 1 Unreport Threat 6 | . . . . 2 . . . . . 2 . 1 . . . . 1 . . . . . Locate Traps 6 | . . . 1 . 1 . . . . 1 . 2 . . . . 1 . . . . . Disarm Traps 1 | . . . . . . . . . . . . 1 . . . . . . . . . . Transport Status 2 | . 1 . 1 . . . . . . . . . . . . . . . . . . . Recall Investigation 2 | . . . 1 . . . . . . . . 1 . . . . . . . . . . Recall Extermination 4 | . . . . . . . . . . . . 3 . . . . 1 . . . . . Hauler Manifests 6 | . 1 . 2 1 . . . . . . . 1 . . . . 1 . . . . . Registered Components 4 | . . . 1 . 1 . . . . 1 . . . . . . 1 . . . . . Registered Prototypes 3 | . . . . . . . . . . 1 . 1 . . . . 1 . . . . . Zone Layout 4 | . . . 1 . 1 . . . . . . . . . . . 1 . . . . 1 Proto ID Catalog 1 | . . 1 . . . . . . . . . . . . . . . . . . . . Fabricator Hacks 30 | . . . . . 3 . . . . 9 . 10 . . . . 7 . . . . 1 Network Status 5 | . . . . . 1 . . . . 1 . 1 . . . . 1 . . . . 1 Load Schematic 17 | . . . . . 2 . . . . 5 . 6 . . . . 4 . . . . . Build 8 | . . . . . . . . . . 3 . 3 . . . . 2 . . . . . Repair Station Hacks 5 | . . . 1 . . . . . . . . 2 . . . . . . . . . 2 Scan Component 3 | . . . 1 . . . . . . . . 1 . . . . . . . . . 1 Repair 2 | . . . . . . . . . . . . 1 . . . . . . . . . 1 Recycling Unit Hacks 4 | . . . 1 . . . . . . . . 2 . . . . 1 . . . . . Retrieve Matter 1 | . . . . . . . . . . . . 1 . . . . . . . . . . Retrieve Components 3 | . . . 1 . . . . . . . . 1 . . . . 1 . . . . . Scanalyzer 14 | . . . 3 . 3 . . . . 4 . 1 . . . . 3 . . . . . Insert Component 5 | . . . 1 . 1 . . . . 2 . . . . . . 1 . . . . . Analyze 4 | . . . . . 1 . . . . 2 . . . . . . 1 . . . . . Retrieve Study 5 | . . . 2 . 1 . . . . . . 1 . . . . 1 . . . . . Garrison Access Hacks 5 | . . . 1 1 1 . . . . . . 1 . . . . 1 . . . . . Seal Access 5 | . . . 1 1 1 . . . . . . 1 . . . . 1 . . . . . Unauthorized Hacks 30 | . . . 5 . 4 . . . . 7 . 6 . . . . 6 . . . . 2 Terminals 18 | . . . 4 . 3 . . . . 4 . 2 . . . . 4 . . . . 1 Botnet 17 | . . . 3 . 3 . . . . 4 . 2 . . . . 4 . . . . 1 Operators 1 | . . . 1 . . . . . . . . . . . . . . . . . . . Fabricators 10 | . . . . . 1 . . . . 3 . 4 . . . . 2 . . . . . Prioritize 2 | . . . . . . . . . . 1 . 1 . . . . . . . . . . Recompile 8 | . . . . . 1 . . . . 2 . 3 . . . . 2 . . . . . Repair Stations 2 | . . . 1 . . . . . . . . . . . . . . . . . . 1 Patch 2 | . . . 1 . . . . . . . . . . . . . . . . . . 1 Recycling Units . | . . . . . . . . . . . . . . . . . . . . . . . Scanalyzers . | . . . . . . . . . . . . . . . . . . . . . . . Garrison Access . | . . . . . . . . . . . . . . . . . . . . . . . Data Cores Recovered 6 | . . . . . 1 . . . . 1 . 2 . . . . 1 . . . . 1 Used 1 | . . . . . 1 . . . . . . . . . . . . . . . . . Hacking Detections 73 | . 3 . 9 4 9 . . . . 12 . 15 . . . . 9 . . . . 12 Full Trace Events 5 | . . . 1 1 2 . . . . 1 . . . . . . . . . . . . Feedback Events 1 | . . . . . 1 . . . . . . . . . . . . . . . . . Hackware Fried 1 | . . . . . 1 . . . . . . . . . . . . . . . . . Feedback Blocked . | . . . . . . . . . . . . . . . . . . . . . . . Robot Schematics Acquired 7 | . . . . . . . . 4 . . . . . . 3 . . . . . . . Robots Built . | . . . . . . . . . . . . . . . . . . . . . . . Authchips . | . . . . . . . . . . . . . . . . . . . . . . . Time . | . . . . . . . . . . . . . . . . . . . . . . . Total Robot Build Rating . | . . . . . . . . . . . . . . . . . . . . . . . Part Schematics Acquired 38 | . . . 1 . 1 . . 15 . 5 . 3 . . 11 . 2 . . . . . Parts Built 13 | . . . . . . . . . . 5 . 4 . . . . 4 . . . . . Authchips 7 | . . . . . . . . . . 2 . 3 . . . . 2 . . . . . Time 381 | . . . . . . . . . . 146 . 165 . . . . 70 . . . . . Total Part Build Rating 73 | . . . . . . . . . . 25 . 24 . . . . 24 . . . . . Part Studies Acquired 5 | . . . 2 . 1 . . . . . . 1 . . . . 1 . . . . . Parts Repaired 2 | . . . . . . . . . . . . 1 . . . . . . . . . 1 Time 111 | . . . . . . . . . . . . 25 . . . . . . . . . 86 Parts Recycled . | . . . . . . . . . . . . . . . . . . . . . . . Recycled Matter . | . . . . . . . . . . . . . . . . . . . . . . . Retrieved Matter . | . . . . . . . . . . . . . . . . . . . . . . . Retrieved Components 18 | . . . 9 . . . . . . . . 3 . . . . 6 . . . . . Parts Scanalyzed 4 | . . . . . 1 . . . . 2 . . . . . . 1 . . . . . Part Schematics Acquired 4 | . . . . . 1 . . . . 2 . . . . . . 1 . . . . . Parts Damaged . | . . . . . . . . . . . . . . . . . . . . . . . Bothacking | -11 -10 -10 -8 -8 -7 -7 -7 -7 -6 -6 -6 -6 -6 -6 -6 -5 -5 -5 -5 -5 -4 -4 ------------ Run | Yrd Mat Sub Mat Sto Fac Low Low Zio Pro Fac Was Fac Low Low Dat Pro Fac Upp Upp War Pro Fac Used RIF Installer . | . . . . . . . . . . . . . . . . . . . . . . . Robots Hacked . | . . . . . . . . . . . . . . . . . . . . . . . Non-combat . | . . . . . . . . . . . . . . . . . . . . . . . Combat . | . . . . . . . . . . . . . . . . . . . . . . . Robot Hacks Applied . | . . . . . . . . . . . . . . . . . . . . . . . Relay Couplers Released . | . . . . . . . . . . . . . . . . . . . . . . . Fabnet Peak Effective % . | . . . . . . . . . . . . . . . . . . . . . . . Robots Rewired . | . . . . . . . . . . . . . . . . . . . . . . . Allies Hacked . | . . . . . . . . . . . . . . . . . . . . . . . Hacks Repelled 1 | . . . . . . . . . . . . . . . . . . . . 1 . . Allies | -11 -10 -10 -8 -8 -7 -7 -7 -7 -6 -6 -6 -6 -6 -6 -6 -5 -5 -5 -5 -5 -4 -4 -------- Run | Yrd Mat Sub Mat Sto Fac Low Low Zio Pro Fac Was Fac Low Low Dat Pro Fac Upp Upp War Pro Fac Total Allies 30 | . . . . 12 . . . . . . 18 . . . . . . . . . . . Largest Group 17 | . . . . 10 1 . . . . . 17 . . . . . . . . . . . Highest-Rated Group 613 | . . . . 173 16 . . . . . 613 . . . . . . . . . . . Highest-Rated Ally 50 | . . . . 31 16 . . . . . 50 . . . . . . . . . . . Total Orders . | . . . . . . . . . . . . . . . . . . . . . . . Ally Attacks 230 | . . . . 141 . . . . . . 89 . . . . . . . . . . . Total Damage 7184 | . . . . 1742 . . . . . . 5442 . . . . . . . . . . . Kills 30 | . . . . 19 . . . . . . 11 . . . . . . . . . . . Allies Corrupted . | . . . . . . . . . . . . . . . . . . . . . . . Allies Melted 2 | . . . . . . . . . . . . . . . . . . . . 2 . . Intel | -11 -10 -10 -8 -8 -7 -7 -7 -7 -6 -6 -6 -6 -6 -6 -6 -5 -5 -5 -5 -5 -4 -4 ------- Run | Yrd Mat Sub Mat Sto Fac Low Low Zio Pro Fac Was Fac Low Low Dat Pro Fac Upp Upp War Pro Fac Active Infowar (turns) 15564 | 26 964 146 2164 1198 766 457 1354 327 314 624 98 1069 71 294 183 181 1338 248 454 826 414 2048 Optics 4578 | . . . . . . . . . . 236 98 1069 71 294 177 159 . . . 12 414 2048 Sensors 9627 | . . . . 1124 766 457 1354 327 314 589 65 1061 71 294 183 181 1338 248 454 801 . . Seismic 3373 | 26 963 146 2164 74 . . . . . . . . . . . . . . . . . . T.N.C. 1 | . 1 . . . . . . . . . . . . . . . . . . . . . Cloaking 3830 | . . . . . . . . . . . . . . . . 8 1159 248 454 787 414 760 Jamming 1034 | . . . . . . . . . . 98 . . . . . . 47 . 139 750 . . ECM 271 | . . . . . . . . . . . . . . . . . . . . . . 271 Robot Analysis Total . | . . . . . . . . . . . . . . . . . . . . . . . Derelict Logs Recovered 15 | . . 1 . . . 1 2 2 1 . . . . 1 . 2 . 1 2 . 2 . Drone Launches . | . . . . . . . . . . . . . . . . . . . . . . . Drone Recoveries . | . . . . . . . . . . . . . . . . . . . . . . . Exploration | -11 -10 -10 -8 -8 -7 -7 -7 -7 -6 -6 -6 -6 -6 -6 -6 -5 -5 -5 -5 -5 -4 -4 ------------- Run | Yrd Mat Sub Mat Sto Fac Low Low Zio Pro Fac Was Fac Low Low Dat Pro Fac Upp Upp War Pro Fac Turns Passed 17799 | 111 1188 2045 2164 1198 766 457 1357 327 314 625 98 1069 71 294 183 181 1345 248 454 842 414 2048 Spaces Moved 21038 | 75 746 1338 1016 520 1345 1152 844 939 626 1174 204 2325 175 507 151 321 2399 330 667 1016 696 2472 Core 9 | 8 . . . . . . . . . 1 . . . . . . . . . . . . Treads 345 | . 1 141 151 52 . . . . . . . . . . . . . . . . . . Legs . | . . . . . . . . . . . . . . . . . . . . . . . Wheels 3361 | 67 745 1197 865 468 19 . . . . . . . . . . . . . . . . . Hover 5286 | . . . . . . . . . . . . . . . . . 105 330 667 1016 696 2472 Flight 12037 | . . . . . 1326 1152 844 939 626 1173 204 2325 175 507 151 321 2294 . . . . . Fastest Speed 30 | 50 95 120 140 130 30 34 30 30 30 30 32 32 34 34 34 34 34 50 54 47 47 47 Average Speed 57 | 86 117 136 159 158 35 34 32 30 30 31 32 33 34 34 34 34 35 52 54 55 47 54 Slowest Speed 600 | 95 320 240 235 400 145 34 34 30 30 600 32 34 34 34 34 34 200 54 54 105 47 127 Overloaded Moves . | . . . . . . . . . . . . . . . . . . . . . . . Propulsion Burnouts . | . . . . . . . . . . . . . . . . . . . . . . . Robots Hopped 54 | . . . . . 19 . . . . 8 . 9 . . . . 18 . . . . . Potential Cave-ins 2 | . . . . . . . . . . . . . . . . . . . . . 2 . Cave-ins Triggered . | . . . . . . . . . . . . . . . . . . . . . . . Exploration Rate (%) 63 | 5 83 61 75 88 34 81 86 82 60 30 81 56 39 67 82 55 35 62 78 90 71 67 Regions Visited 22 Branch Regions 14 Pre-discovered Areas 6 | . . . . . . 1 . 2 . . . . . 1 1 . . . . . 1 . Known Exits Taken 18 | . . 1 1 1 1 1 1 1 1 . . 1 1 1 1 1 1 1 1 1 1 . Unknown Exits Taken 2 | 1 1 . . . . . . . . . . . . . . . . . . . . . Scrap Searched 23 | . . . . . . 3 5 . 2 . . . . 2 . . . 3 3 . 5 . Spaces Dug 185 | . 1 . 1 1 28 14 13 . . 19 1 21 . 3 1 . 35 2 . . 11 34 Terrain Destroyed 661 | . 1 2 22 1 28 14 13 . . 53 1 47 . 3 1 1 35 16 152 141 13 117 Melee 141 | . 1 . . 1 28 11 9 . . 17 1 16 . 1 1 . 30 1 . . 4 20 Projectile 115 | . . 2 4 . . 3 4 . . 3 . 5 . 2 . 1 5 4 1 29 9 43 AOE 404 | . . . 18 . . . . . . 33 . 26 . . . . . 11 151 112 . 53 Terrain Rammed . | . . . . . . . . . . . . . . . . . . . . . . . Walls Destroyed . | . . . . . . . . . . . . . . . . . . . . . . . Machines Disabled . | . . . . . . . . . . . . . . . . . . . . . . . Actions | -11 -10 -10 -8 -8 -7 -7 -7 -7 -6 -6 -6 -6 -6 -6 -6 -5 -5 -5 -5 -5 -4 -4 --------- Run | Yrd Mat Sub Mat Sto Fac Low Low Zio Pro Fac Was Fac Low Low Dat Pro Fac Upp Upp War Pro Fac Total 25193 | 103 897 1487 1357 763 1513 1187 1896 981 747 1349 233 2535 178 622 225 379 2753 394 740 1224 746 2884 Wait 2510 | 8 30 11 120 48 80 13 1029 37 119 93 25 124 . 108 46 44 241 52 50 95 16 121 Move 20919 | 74 745 1337 1015 519 1313 1151 843 938 625 1159 203 2307 174 506 150 320 2363 329 666 1015 695 2472 Hop 44 | . . . . . 12 . . . . 7 . 8 . . . . 17 . . . . . Pick Up 174 | 7 20 30 29 21 5 1 . 2 . 10 . 9 . . . . 14 . 1 7 6 12 Fast Attach 115 | 7 3 3 10 6 5 . 2 . . 6 2 6 . 2 . 1 19 2 . 13 . 28 Attach 71 | . 3 6 4 6 7 . 1 . . 7 1 5 . . . 2 10 . 1 5 . 13 Detach 21 | . 1 . . 1 2 . . . . 3 1 2 . . . 2 2 . . 3 . 4 Swap 142 | . 5 20 14 15 9 6 5 2 . 11 . 6 . . 1 3 9 5 6 4 2 19 Drop 183 | . 8 21 35 27 14 1 1 1 . 11 . 11 . 2 . . 17 2 1 14 2 15 Fire 642 | 7 79 53 128 109 14 3 4 . 2 6 . 7 . 2 . 1 5 2 15 68 11 126 Melee 329 | . 2 . . 11 52 12 11 1 1 36 1 35 4 2 28 6 56 2 . . 14 55 Ram . | . . . . . . . . . . . . . . . . . . . . . . . Kick . | . . . . . . . . . . . . . . . . . . . . . . . Crush 3 | . 1 . 2 . . . . . . . . . . . . . . . . . . . Escape Stasis 28 | . . . . . . . . . . . . 15 . . . . . . . . . 13 Rewire 6 | . . . . . . . . . . . . . . . . . . . . . . 6 Trap 1 | . . 1 . . . . . . . . . . . . . . . . . . . . Miscellaneous 5 | . . 5 . . . . . . . . . . . . . . . . . . . . Route ------- -11/Scrapyard -10/Materials (discovered 6 exits: [*Mat x3] / [*Min x2] / *Sub) -10/Subcaves (discovered 4 exits: *Mat x2 / Rec / [*Scr]) -8/Materials (discovered 3 exits: *Fac x2 / *Sto) -8/Storage -7/Factory (discovered 3 exits: *Fac / *Low x2) -7/Lower Caves -7/Lower Caves (discovered 2 exits: *Fac / *Zio) -7/Zion -6/Proximity Caves -6/Factory (discovered 3 exits: *Fac / *Low / Ext) -6/Waste -6/Factory (discovered 5 exits: *Fac / *Low x2 / Ext x2) -6/Lower Caves -6/Lower Caves -6/Data Miner -5/Proximity Caves -5/Factory (discovered 2 exits: *Upp x2) -5/Upper Caves -5/Upper Caves (discovered 2 exits: *Fac / *War) -5/Warlord -4/Proximity Caves -4/Factory (discovered 3 exits: *Res x2 / *Upp) History --------- Turn | Location | Event 13 | -11/Scrapyard | Discovered new exit (range 14) 112 | -11/Scrapyard | Entered Materials 278 | -10/Materials | Discovered new exit (range 9) 301 | -10/Materials | Build established: Mutant 363 | -10/Materials | Discovered new exit (range 7) 436 | -10/Materials | Discovered new exit (range 15) 570 | -10/Materials | Discovered new exit (range 15) 620 | -10/Materials | Discovered new exit (range 13) 812 | -10/Materials | Derelicts attacked the area 1289 | -10/Materials | Discovered new exit (range 9) 1300 | -10/Materials | Entered Subcaves 1301 | -10/Subcaves | Approached by a straggling Scientist 1367 | -10/Subcaves | Lost 4 parts (1p1u2w) 1420 | -10/Subcaves | Shifting Twisted Machinery released Sub. Laser 1426 | -10/Subcaves | Shifting Twisted Machinery released Sub. Shrapnel Launcher 1437 | -10/Subcaves | Discovered new exit (range 12) 1511 | -10/Subcaves | A swath of the cavern ceiling suddenly collapsed 1755 | -10/Subcaves | Visited Clippyterm 1759 | -10/Subcaves | Identified exit to Materials 1759 | -10/Subcaves | Identified exit to Recycling 1759 | -10/Subcaves | Learned Factory emergency access door positions 2039 | -10/Subcaves | A swath of the cavern ceiling suddenly collapsed 2145 | -10/Subcaves | Build established: Subdweller-Mutant 2180 | -10/Subcaves | Shifting Twisted Machinery released Mak. Axe 2200 | -10/Subcaves | Learned 4 Materials zone layouts 2204 | -10/Subcaves | Shifting Twisted Machinery released Piercing Trap 2688 | -10/Subcaves | Core integrity fell below 50% 2923 | -10/Subcaves | Visited 4L-MR0's lab 2942 | -10/Subcaves | Found Flightbrick 3345 | -10/Subcaves | Entered Materials 3345 | -8/Materials | Evolved 4 slots: Propulsion x2, Utility x2 3346 | -8/Materials | Identified exit to Factory 3346 | -8/Materials | Identified exit to Storage 3883 | -8/Materials | Build established: Mutant 4822 | -8/Materials | Discovered exit to Factory (range 16) 5509 | -8/Materials | Entered Storage 5655 | -8/Storage | Met a pair of Derelict thieves 5893 | -8/Storage | Garrison activated, responded to threat 5909 | -8/Storage | Build established: Scavenger-Mutant 5952 | -8/Storage | Destroyed 7 combat bots 5956 | -8/Storage | Lost 3 parts (2n1u) 6125 | -8/Storage | Assisted by bots powering up and referring to "LRC-V3" 6155 | -8/Storage | Core integrity fell below 50% 6377 | -8/Storage | Lost 3 allies 6659 | -8/Storage | Discovered exit to Factory (range 9) 6707 | -8/Storage | Entered Factory 6707 | -7/Factory | Accompanied by 1 ally 6707 | -7/Factory | Evolved 2 slots: Propulsion x2 6720 | -7/Factory | Lost 3 allies 6741 | -7/Factory | Attached Flightbrick, gained temporary slots: Utility x3 6806 | -7/Factory | Discovered new exit (range 3) 6807 | -7/Factory | Identified exit to Factory 7049 | -7/Factory | Hacking Suite fried by hacking feedback 7072 | -7/Factory | Build established: Hacker-Mutant 7257 | -7/Factory | Identified exit to Lower Caves 7268 | -7/Factory | Central database locked down 7473 | -7/Factory | Entered Lower Caves 7876 | -7/Lower Caves | Learned location of Extension (-6) 7878 | -7/Lower Caves | Found DCF Scrap (13 items) 7915 | -7/Lower Caves | Discovered new exit (range 5) 7930 | -7/Lower Caves | Identified exit to Lower Caves 7930 | -7/Lower Caves | Entered another Lower Caves area 7943 | -7/Lower Caves | Discovered exit to Factory (range 14) 7955 | -7/Lower Caves | Found Alien Artifact 7955 | -7/Lower Caves | Identified Core Expander 7955 | -7/Lower Caves | Installed Core Expander, added new Power slot 8232 | -7/Lower Caves | Learned location of 1 exit from Proximity Caves 8259 | -7/Lower Caves | Discovered new exit (range 10) 8467 | -7/Lower Caves | Build established: Hacker-Sprinter 9286 | -7/Lower Caves | Learned location of 1 exit from Lower Caves 9286 | -7/Lower Caves | Identified exit to Zion 9287 | -7/Lower Caves | Entered Zion 9318 | -7/Zion | Discovered new exit (range 12) 9353 | -7/Zion | Found CR-A16's Pointy Stick 9430 | -7/Zion | Learned Factory interactive machine intel 9499 | -7/Zion | Given the Hacking Drone Bay 9521 | -7/Zion | Found Prototype Special Weapon 9522 | -7/Zion | Identified RU-N14's Throwing Claymores 9561 | -7/Zion | Received a hallucinogenic algorithm 9577 | -7/Zion | Learned location of Data Miner (-6) 9614 | -7/Zion | Identified exit to Proximity Caves 9614 | -7/Zion | Entered Proximity Caves 9928 | -6/Proximity Caves | Entered Factory 9928 | -6/Factory | Evolved 2 slots: Utility x2 9929 | -6/Factory | Identified exit to Extension 9930 | -6/Factory | Loaded intel: 56 interactive machine locations 10067 | -6/Factory | Spotted B-75 Beast 10153 | -6/Factory | Fabricated Biomechanical Wings? 10182 | -6/Factory | Discovered new exit (range 13) 10186 | -6/Factory | Identified exit to Lower Caves 10347 | -6/Factory | Discovered new exit (range 11) 10374 | -6/Factory | Fabricated Weapon Mount? 10417 | -6/Factory | Fabricated Enh. Optical Array (x2) 10426 | -6/Factory | Identified exit to Factory 10489 | -6/Factory | Watched by a mysterious "MATRIX" hacker 10553 | -6/Factory | Sucked down chute 10553 | -6/Factory | Entered Waste 10556 | -6/Waste | Spotted C-40 Crusher 10568 | -6/Waste | EMP discharged 10582 | -6/Waste | Spotted C-40 Crusher 10582 | -6/Waste | Spotted C-40 Crusher 10593 | -6/Waste | Crushed by Compactor (1 part destroyed) 10601 | -6/Waste | Met Warlord forces unprepared to attack 10612 | -6/Waste | Spotted C-40 Crusher 10628 | -6/Waste | Allies destroyed C-40 Crusher 10630 | -6/Waste | Spotted C-40 Crusher 10632 | -6/Waste | Allies destroyed C-40 Crusher 10637 | -6/Waste | Spotted C-40 Crusher 10642 | -6/Waste | Discovered new exit (range 22) 10651 | -6/Waste | Entered Factory 10674 | -6/Factory | Lost 13 allies 10686 | -6/Factory | Build established: Hacker-Scout 10826 | -6/Factory | Fabricated Biomechanical Wings (x1) 11021 | -6/Factory | Discovered exit to Factory (range 4) 11434 | -6/Factory | System corruption reached 10% 11468 | -6/Factory | Fabricated Gravity Neutralizer? 11520 | -6/Factory | Repaired Phase Cannon? 11643 | -6/Factory | Fabricated Imp. Cloaking Device (x2) 11720 | -6/Factory | Entered Lower Caves 11721 | -6/Lower Caves | Identified exit to Lower Caves 11791 | -6/Lower Caves | Entered another Lower Caves area 12079 | -6/Lower Caves | Discovered new exit (range 18) 12085 | -6/Lower Caves | Identified exit to Data Miner 12085 | -6/Lower Caves | Entered Data Miner 12087 | -6/Data Miner | Discovered new exit (range 6) 12091 | -6/Data Miner | Met Data Miner 12107 | -6/Data Miner | Learned location of Section 7 (-2) 12107 | -6/Data Miner | Acquired the access code to Warlord's prototype stash 12113 | -6/Data Miner | Received God Mode back door access code from Data Miner 12125 | -6/Data Miner | Data Conduit disabled 12268 | -6/Data Miner | Identified exit to Proximity Caves 12268 | -6/Data Miner | Entered Proximity Caves 12337 | -5/Proximity Caves | Attracted the attention of an 0b10 checkpoint 12375 | -5/Proximity Caves | Spotted B-75 Beast 12424 | -5/Proximity Caves | Revealed the true nature of CR-A16's Pointy Stick 12433 | -5/Proximity Caves | Destroyed B-75 Beast 12444 | -5/Proximity Caves | Discovered exit to Factory (range 15) 12449 | -5/Proximity Caves | Entered Factory 12449 | -5/Factory | Evolved 2 slots: Utility x1, Weapon x1 12450 | -5/Factory | Identified exit to Upper Caves 12728 | -5/Factory | Build established: Hacker-Mutant 13074 | -5/Factory | Discovered exit to Upper Caves (range 9) 13254 | -5/Factory | Declared boring by mysterious "MATRIX" hacker 13584 | -5/Factory | Allied Derelicts emerged from ambush trap array 13661 | -5/Factory | Fabricated Cmb. Gravmag System? 13736 | -5/Factory | Fabricated Cmb. Gravmag System (x2) 13746 | -5/Factory | Unchained authorized (BL-1NK) 13794 | -5/Factory | Entered Upper Caves 13797 | -5/Upper Caves | Encountered a Warlord checkpoint 13903 | -5/Upper Caves | Identified exit to Upper Caves 14040 | -5/Upper Caves | Unchained authorized (BL-1NK) 14042 | -5/Upper Caves | Entered another Upper Caves area 14195 | -5/Upper Caves | Identified exit to Warlord 14253 | -5/Upper Caves | Discovered new exit (range 13) 14259 | -5/Upper Caves | Unchained authorized (BL-1NK) 14289 | -5/Upper Caves | Attracted the attention of an 0b10 checkpoint 14361 | -5/Upper Caves | Encountered a Warlord checkpoint 14492 | -5/Upper Caves | Learned location of 1 exit from Factory 14496 | -5/Upper Caves | Entered Warlord 14516 | -5/Warlord | System corruption cleaned by Quarantine Array 14651 | -5/Warlord | Opened Warlord's prototype stash 14662 | -5/Warlord | Found Prototype Device 14662 | -5/Warlord | Identified System Purifier 14665 | -5/Warlord | Found Prototype Processor 14665 | -5/Warlord | Identified Exp. Armor Integrity Analyzer 14668 | -5/Warlord | Found Prototype Hackware 14668 | -5/Warlord | Identified Ghost Barrier 14674 | -5/Warlord | Found Prototype Reactor 14674 | -5/Warlord | Identified Vortex Chain Reactor 14754 | -5/Warlord | Visited the Vortex Lab 14758 | -5/Warlord | Found Prototype Energy Cannon 14758 | -5/Warlord | Identified Vortex Driver 14762 | -5/Warlord | Found Vortex Driver 14774 | -5/Warlord | Warlord's base attacked by MAIN.C 14794 | -5/Warlord | Met Warlord 15124 | -5/Warlord | Warlord forces counterattacked 15127 | -5/Warlord | Found Prototype Special Weapon 15127 | -5/Warlord | Identified RU-N14's Throwing Claymores v3 15129 | -5/Warlord | Found RU-N14's Throwing Claymores v3 15144 | -5/Warlord | Spotted B-86 Titan 15154 | -5/Warlord | Spotted B-75 Beast 15155 | -5/Warlord | Destroyed B-75 Beast 15172 | -5/Warlord | Spotted Striker 15202 | -5/Warlord | Spotted Striker 15207 | -5/Warlord | Destroyed 7 combat bots 15239 | -5/Warlord | Spotted B-75 Beast 15239 | -5/Warlord | Spotted B-86 Titan 15242 | -5/Warlord | Destroyed B-75 Beast 15275 | -5/Warlord | Lost 10 allies 15287 | -5/Warlord | Spotted Striker 15289 | -5/Warlord | Spotted Striker 15308 | -5/Warlord | Spotted Executioner 15320 | -5/Warlord | Discovered new exit (range 16) 15324 | -5/Warlord | Found Prototype Processor 15324 | -5/Warlord | Identified Exp. Targeting Computer 15328 | -5/Warlord | Lost 4 parts (2u2w) 15328 | -5/Warlord | Found Prototype Processor 15332 | -5/Warlord | Destroyed 7 combat bots 15338 | -5/Warlord | Identified exit to Proximity Caves 15338 | -5/Warlord | Entered Proximity Caves 15344 | -4/Proximity Caves | Lost 3 allies 15396 | -4/Proximity Caves | Learned location of Armory (-3) 15566 | -4/Proximity Caves | Learned Research trap positions 15748 | -4/Proximity Caves | Discovered new exit (range 8) 15752 | -4/Proximity Caves | Identified exit to Factory 15752 | -4/Proximity Caves | Entered Factory 15752 | -4/Factory | Evolved 2 slots: Utility x2 15752 | -4/Factory | Identified Exp. Core Analyzer 15753 | -4/Factory | Identified exit to Upper Caves 15913 | -4/Factory | Discovered new exit (range 15) 16081 | -4/Factory | Spotted B-86 Titan 16545 | -4/Factory | Lost 4 parts (2n1u1w) 16638 | -4/Factory | Repaired Broken Imp. Cloaking Device? 16921 | -4/Factory | Found Exp. Signal Interpreter 17026 | -4/Factory | Discovered new exit (range 22) 17155 | -4/Factory | Lost 3 parts (1p1n1w) 17160 | -4/Factory | Destroyed 10 combat bots 17335 | -4/Factory | Identified exit to Research 17545 | -4/Factory | Destroyed 7 combat bots 17578 | -4/Factory | Lost 3 parts (1p1n1w) 17752 | -4/Factory | First assault squad dispatched 17775 | -4/Factory | Spotted B-86 Titan 17778 | -4/Factory | Destroyed B-86 Titan 17800 | -4/Factory | Self-destructed Last Messages --------------- 17769_ O-32 Director locks terminal. 17778_ System corrupted: Component data lost. 17778_ Knocked back. 17778_ B-86 Titan suddenly blasts apart at the seams. 17778_ B-86 Titan destroyed. 17781_ Acquired 65 matter. 17785_ Sneak attack on A-15 Conveyor. 17785_ A-15 Conveyor destroyed. 17787_ U-05 Engineer builds a Wall. 17787_ R-10 Processor collects Hardcell Cannon. 17789_ U-05 Engineer builds a Wall. 17792_ Connecting with Terminal... 17795_ System corrupted: Matter fused (-6). 17797_ H-77 Assassin Coil Gun blasted off. 17798_ Penetrated by Slug. 17798_ R-10 Processor collects Hvy. Treads. 17799_ U-05 Engineer builds a Wall. 17799_ Penetrated by Slug. 17799_ Cmb. Gravmag System+ destroyed. Map ----- +----------------------------------------------------+ | | | | | | | | | | | | | | | | | | | | | | | | | | | | | ?????????????????????????????????????????????????? | | ?????????????????????????????????????????????????? | | ???????????#########????????????????############?? | | ?????????#"""""""""""???????????????# #?? | | ?????##### """"T"""" ##########?????# ### | | ?????+ """" R #?????# | | ????????# F " !#?????# ### | | ????????# !!! ![ ######### #?# | | ???????##h !! [[ #?# | | ??????##% !! [ % #?# | | ??? h u ! #?# | | ??? % uo @]] ### #?# | | ?????! #########+## !]%]= #?# #?# | | ?????? ??????? ?????###+########### #?# #?# | | ?????????????# ???????# ]=] #??????# #?# #?# | | ?????????????#????????# """ #?????##+###+### | | ??????????????????????# "T" !#?????# # | | ??????????????????????# " " #?????# """ # | | ??????????????????????# =#?????# """"" # | | ??????????????????????# #?????# """"" # | | ??????????????????????########?????# # | | ???????????????????????????????????# """ !# | | ???????????????????????????????????# """ # | | ???????????????????????????????????# """ + | | ???????????????????????????????????# # | | ???????????????????????????????????########### | | ???????????????????????????????????????????? # | | ??????????????????????????????????????????? " | | ????????????????????????????????????????? #+### | | ???????????????????????????????????????? # | | ??????????????????????????????????????? # " | | ??????????????????????????????????????? ? # " | | ?????????????????????????????????????? ?? # | | ?????????????????????????????????????? ??? # " | | ??????????????????????????????????????##????## | | ?????????????????????????????????????????????##+## | +----------------------------------------------------+ Best States ------------- Heat Dissipation 64 Coolant Potential 120 Energy Generation 55 Energy Capacity 700 Matter Stores 300 Matter Capacity 300 Sight Range 23 Robot Scan Range 16 Terrain Scan Density 110 ECM Strength 2 Jamming Range 14 Cloak Strength 3 Additional Mass Support 12 Armor Coverage 800 Utility Shielding 66 Evasion (%) 64 Targeting Accuracy 32 Core Analysis 8 Recoil Reduction 3 Offensive Hacking 34 Defensive Hacking 20 Authchip Count 3 Item Schematics ----------------- Hacking Suite | -8/Materials | Hacked Imp. VTOL Module | -7/Factory | Scanalyzed Imp. Field Recycling Unit | -7/Zion | Archive Adv. Heat Sink | -7/Zion | Archive Adv. Terrain Scanner | -7/Zion | Archive Med. Treads | -7/Zion | Archive Fission Core | -7/Zion | Archive Imp. Shield Generator | -7/Zion | Archive Disruptor Cannon | -7/Zion | Archive Gauss Cannon | -7/Zion | Archive Matter Compressor | -7/Zion | Archive Gauss Rifle | -7/Zion | Archive Jamming Amplifier | -7/Zion | Archive Imp. Deuterium Engine | -7/Zion | Archive Hvy. Flak Cannon | -7/Zion | Archive Imp. EM Pulse Cannon | -7/Zion | Archive Imp. Focal Shield | -7/Zion | Archive Plasma Cutter | -6/Factory | Scanalyzed Imp. Sensor Array | -6/Factory | Scanalyzed Weapon Mount | -6/Factory | Hacked Enh. Optical Array | -6/Factory | Hacked Biomechanical Wings | -6/Factory | Hacked Imp. Cloaking Device | -6/Factory | Hacked Gravity Neutralizer | -6/Factory | Hacked Exp. Signal Interpreter | -6/Factory | Hacked Combat Drone Bay | -6/Data Miner | Free Lgt. Regenerative Plating | -6/Data Miner | Free Cld. Gravmag System | -6/Data Miner | Free Adv. EM Disruption Field | -6/Data Miner | Free Enh. Coil Gun | -6/Data Miner | Free Centrium Wheel | -6/Data Miner | Free Adv. Target Analyzer | -6/Data Miner | Free Dispersion Rifle | -6/Data Miner | Free Adv. Plasma Cannon | -6/Data Miner | Free Adv. Thermal Shield | -6/Data Miner | Free Gamma Bomb Array | -6/Data Miner | Free Lrg. Storage Unit | -5/Factory | Hacked Cmb. Gravmag System | -5/Factory | Scanalyzed Robot Schematics ------------------ A-02 Transporter | -7/Zion | Archive T-07 Excavator | -7/Zion | Archive H-55 Commando | -7/Zion | Archive X-82 Rainmaker | -7/Zion | Archive B-48 Gladiator | -6/Data Miner | Free B-60 Warrior | -6/Data Miner | Free R-10 Processor | -6/Data Miner | Free Fabricated ------------ Biomechanical Wings | x1 | -6/Factory | Authchip Weapon Mount | x2 | -6/Factory | Authchip Enh. Optical Array | x2 | -6/Factory Biomechanical Wings | x1 | -6/Factory | Authchip Gravity Neutralizer | x1 | -6/Factory | Authchip Imp. Cloaking Device | x2 | -6/Factory | Authchip Cmb. Gravmag System | x2 | -5/Factory | Authchip Cmb. Gravmag System | x2 | -5/Factory | Authchip Repaired ---------- Phase Cannon | 11% | -6/Factory Imp. Cloaking Device | 53% | -4/Factory | Broken Studied --------- Cesium-ion Thruster | -8/Materials | Hacked Lgt. Nuclear Core | -8/Materials | Hacked Lgt. Angular Momentum Engine | -7/Factory | Hacked Powered Hammer | -6/Factory | Hacked Cmb. Gravmag System | -5/Factory | Hacked Alien Tech Used ----------------- Core Expander Achievements -------------- None Challenges ------------ None Game ------ Seed PlasmaCoordinationTorch Manual? 0 Play Time 04:59:38 Cumulative 425.9 hours Start 2026.08.15 @ 19:51:05 End 2026.08.17 @ 16:41:02 Sessions 7 Manual Loads 0 Difficulty Rogue Special Mode None Game No. 253 Rogue 228 Adventurer 25 Explorer 0 Win Type - Total 14 Types 9/0/3/1/0/0/0/1/0/0 Lore% 86 Gallery% 69 Achievement% 65 Wizard Run 0 Options --------- Layout 1 ASCII 0 Keyboard 0 Movement Mouse Keybinds 0 Fullscreen 2 Font 24/Smallcaps Map View 50x40 Zoom Use 0% Tactical HUD 1 Map Filters NONE Filters NONE Steam 1 RUN: b3c9095d-11b6-421a-8d94-7d11b1b4c8d8